bitfinex/quotes_SOLUSD_20240808
["timestamp","ask_amount","ask_price","bid_price","bid_amount"]
[1723120174365,6.5368,152.98,152.93,6.5386]
[1723120174569,37.04,152.99,152.91,6.5394]
[1723120174778,1.63469538,152.98,152.91,6.5394]
[1723120175067,1.63469538,152.98,152.9,16.3501]
[1723120175068,37.04,152.96,152.9,16.3501]
[1723120175278,6.5385,152.94,152.9,16.3501]
[1723120175648,37.04,152.96,152.87,16.3532]
[1723120175861,20.0,152.95,152.83,1.30811429]
[1723120176079,20.0,152.95,152.84,20.34]
[1723120176764,37.04,152.93,152.83,20.0]
[1723120176969,37.04,152.93,152.89,6.5406]
[1723120177171,37.04,152.93,152.87,6.5411]
[1723120177353,37.04,152.93,152.85,16.3552]
[1723120177851,6.5394,152.92,152.87,6.5414]
[1723120178364,6.5397,152.91,152.86,6.5419]
[1723120178565,6.5394,152.92,152.87,6.5414]
[1723120178954,43.5789,152.93,152.88,6.5409]
[1723120179381,37.04,152.93,152.83,20.0]
[1723120179585,37.04,152.93,152.9,6.54]
[1723120180082,37.04,152.93,152.8,0.8464594]
[1723120180273,37.04,152.89,152.8,0.8464594]
[1723120180989,37.04,152.89,152.86,6.5417]
[1723120181188,37.04,152.89,152.87,6.5414]
[1723120181482,6.5388,152.94,152.88,6.5407]
[1723120181672,26.5183,152.93,152.88,6.5407]
[1723120181983,6.5394,152.92,152.87,22.8945]
[1723120182357,20.0,152.93,152.87,22.8945]
[1723120182358,20.0,152.93,152.87,16.3531]
[1723120182555,37.04,152.94,152.89,16.3508]
[1723120182811,6.5381,152.95,152.9,6.5401]
[1723120182970,43.5775,152.97,152.89,16.3508]
[1723120183290,37.04,153.0,152.97,16.3426]
[1723120183491,9.73047039,153.11,152.97,16.3426]
[1723120183664,16.3327,153.07,152.97,16.3426]
[1723120183861,6.5349,153.03,152.98,6.5366]
[1723120184081,6.5351,153.02,152.97,22.8796]
[1723120184264,6.5336,153.06,152.98,1.307362]
[1723120184585,37.04,153.07,152.98,1.307362]
[1723120184586,6.5342,153.04,152.99,6.5362]
[1723120184764,6.535,153.03,152.98,16.3414]
[1723120185171,43.5743,153.04,152.98,16.3414]
[1723120185997,43.5743,153.04,152.98,22.878]
[1723120186164,43.5743,153.04,152.99,6.5363]
[1723120186671,43.5743,153.04,152.98,22.878]
[1723120186874,6.5348,153.03,152.98,22.878]
[1723120187592,37.04,153.04,152.99,6.5361]
[1723120187593,43.5743,153.04,152.99,6.5361]
[1723120187768,6.83029279,153.09,153.0,40.0]
[1723120187966,37.04,153.14,153.02,20.0]
[1723120188268,6.5307,153.13,153.02,20.0]
[1723120188478,38.67304938,153.14,153.07,6.5328]
[1723120188662,37.04,153.14,153.08,6.5324]
[1723120188983,6.5306,153.13,153.07,6.5328]
[1723120189166,6.5315,153.11,153.05,6.5336]
[1723120189378,6.5325,153.09,153.04,6.5341]
[1723120189674,1.63323472,153.13,153.08,6.5322]
[1723120189675,6.5304,153.13,153.08,6.5322]
[1723120189868,6.5308,153.12,153.07,6.5329]
[1723120190466,43.5702,153.14,153.0,26.5357]
[1723120190693,20.0,153.13,153.0,26.5357]
[1723120191181,20.0,153.13,153.02,6.5349]
[1723120191381,20.0,153.13,153.03,1.30651588]
[1723120191563,20.0,153.13,153.02,6.5349]
[1723120191973,37.04,153.17,153.03,0.17]
[1723120192172,38.67290457,153.17,153.03,20.17]
[1723120192373,37.04,153.17,153.03,20.0]
[1723120193198,6.82535143,153.2,153.04,21.30635443]
[1723120193492,37.04,153.15,153.04,6.5341]
[1723120193795,1.63309415,153.14,153.04,6.5341]
[1723120194093,38.67310566,153.15,153.03,20.0]
[1723120194393,1.63310566,153.14,153.05,20.0]
[1723120194694,45.17,153.14,153.05,20.0]
[1723120194999,45.0,153.14,153.05,20.0]
[1723120195163,37.04,153.15,153.05,20.0]
[1723120195366,37.04,153.15,153.06,6.5331]
[1723120195567,13.35295143,153.2,153.1,6.5315]
[1723120195568,6.5287,153.17,153.1,6.5315]
[1723120195767,37.04,153.18,153.05,41.30611099]
[1723120195986,37.04,153.21,153.14,6.5297]
[1723120196171,37.04,153.21,153.07,40.0]
[1723120196172,53.3548,153.24,153.15,6.5294]
[1723120196370,6.5274,153.2,153.07,41.30572467]
[1723120196609,6.5287,153.17,153.08,20.0]
[1723120196766,1.63255891,153.2,153.07,20.0]
[1723120196968,23.13450053,153.24,153.06,20.34]
[1723120197192,1.63220894,153.23,153.1,20.0]
[1723120197371,6.5275,153.2,153.08,20.0]
[1723120197573,6.527,153.21,153.14,6.5299]
[1723120197772,1.63234037,153.23,153.1,40.0]
[1723120197773,37.04,153.23,153.1,40.0]
[1723120198002,17.94343768,153.27,153.12,20.0]
[1723120198297,6.5266,153.22,153.12,20.0]
[1723120198496,1.63206383,153.21,153.12,20.0]
[1723120198672,37.04,153.25,153.13,1.30555355]
[1723120198983,43.5653,153.25,153.18,6.5282]
[1723120199168,37.04,153.28,153.19,1.30539931]
[1723120199494,11.57326117,153.31,153.16,20.0]
[1723120199687,6.5237,153.29,153.18,20.0]
[1723120200001,46.08349512,153.31,153.23,6.526]
[1723120200209,6.5249,153.26,153.19,6.5274]
[1723120200530,7.3677594,153.35,153.2,21.47542179]
[1723120200706,0.8464594,153.35,153.22,40.0]
[1723120200905,0.8464594,153.35,153.33,6.5217]
[1723120201194,0.8464594,153.35,153.28,20.0]
[1723120201377,0.8464594,153.35,153.33,6.5217]
[1723120201797,6.0,153.41,153.4,6.5189]
[1723120202667,0.8464594,153.5,153.48,6.5154]
[1723120203292,0.8464594,153.5,153.46,6.5161]
[1723120203598,0.8464594,153.5,153.42,40.0]
[1723120203794,0.8464594,153.5,153.48,6.5152]
[1723120204402,0.8464594,153.5,153.41,0.17]
[1723120204403,0.8464594,153.5,153.42,20.0]
[1723120204592,0.3464594,153.5,153.49,6.515]
[1723120205405,0.3464594,153.5,153.49,73.15736884]
[1723120205582,16.2607,153.75,153.6,6.5101]
[1723120205583,6.5067,153.69,153.6,6.5101]
[1723120205772,44.87,153.71,153.55,40.0]
[1723120206004,6.80320193,153.71,153.57,20.0]
[1723120206173,0.8464594,153.82,153.64,6.5085]
[1723120206570,6.80157983,153.77,153.64,6.5085]
[1723120206792,44.87,153.79,153.64,6.5085]
[1723120206996,0.8464594,153.82,153.65,85.34]
[1723120206997,6.502,153.8,153.65,85.34]
[1723120207176,0.8464594,153.82,153.7,20.0]
[1723120207501,0.8464594,153.82,153.79,6.5021]
[1723120207703,0.8464594,153.82,153.74,20.0]
[1723120208011,0.8464594,153.82,153.8,6.5017]
[1723120208669,0.8464594,153.82,153.81,20.0]
[1723120209400,1.62457147,153.99,153.83,20.0]
[1723120209598,44.87,153.94,153.77,20.0]
[1723120209933,6.5009,153.83,153.74,6.5042]
[1723120210206,2.603202,153.98,153.71,20.0]
[1723120210207,1.62567565,153.89,153.71,20.0]
[1723120210389,6.4995,153.86,153.77,6.503]
[1723120210608,1.62547883,153.88,153.71,20.0]
[1723120210609,1.62547883,153.88,153.71,40.0]
[1723120210811,46.49559988,153.9,153.74,40.0]
[1723120210980,0.6813285,153.95,153.82,20.0]
[1723120211184,0.6813285,153.95,153.86,20.0]
[1723120211412,0.6813285,153.95,153.87,1.2050477]
[1723120211609,0.6813285,153.95,153.93,6.4962]
[1723120212087,6.4968,153.92,153.79,9.21244911]
[1723120212282,45.5513285,153.95,153.8,21.29794465]
[1723120212494,0.6813285,153.95,153.82,20.0]
[1723120212693,0.6813285,153.95,153.89,6.4979]
[1723120212893,0.6813285,153.95,153.88,6.4983]
[1723120213214,0.6813285,153.95,153.81,20.0]
[1723120213515,0.6813285,153.95,153.85,40.0]
[1723120213717,0.6813285,153.95,153.91,6.4971]
[1723120214025,0.6813285,153.95,153.93,6.4962]
[1723120214513,0.6813285,153.95,153.94,21.31244215]
[1723120214713,0.6813285,153.95,153.94,66.63851526]
[1723120215191,6.4895,154.1,154.02,6.4926]
[1723120215192,8.11251473,154.1,154.02,6.4926]
[1723120215384,6.4928,154.02,153.94,0.34]
[1723120215587,6.78746518,154.14,153.92,20.0]
[1723120215588,44.87,154.1,153.92,20.0]
[1723120215897,2.54918215,154.13,153.97,20.0]
[1723120215898,0.9257405,154.13,153.97,20.0]
[1723120216092,0.9257405,154.13,154.08,6.4897]
[1723120216320,0.9257405,154.13,153.98,45.70699716]
[1723120216321,0.9257405,154.13,154.11,6.4886]
[1723120216897,0.9257405,154.13,154.12,0.34]
[1723120217219,1.62151884,154.25,154.08,20.0]
[1723120217387,6.4835,154.24,154.14,6.4873]
[1723120217590,1.62146885,154.26,154.09,0.34]
[1723120217815,1.62146885,154.26,154.1,20.0]
[1723120218117,17.1287405,154.3,154.09,46.63725857]
[1723120218118,0.9257405,154.3,154.14,20.0]
[1723120218300,0.9257405,154.3,154.19,20.0]
[1723120218505,0.9257405,154.3,154.21,20.0]
[1723120218801,0.9257405,154.3,154.26,20.0]
[1723120219113,0.9257405,154.3,154.22,45.34]
[1723120219292,0.9257405,154.3,154.29,20.0]
[1723120219620,0.9257405,154.3,154.29,66.63497327]
[1723120219833,0.9257405,154.47,154.29,66.63497327]
[1723120219834,0.9257405,154.47,154.31,20.0]
[1723120220117,0.9257405,154.47,154.36,20.0]
[1723120220319,0.9257405,154.47,154.41,20.0]
[1723120220657,0.9257405,154.47,154.46,20.0]
[1723120220831,0.9257405,154.47,154.46,85.17]
[1723120221020,0.9257405,154.47,154.46,65.34]
[1723120221320,7.69127152,154.64,154.46,65.34]
[1723120221530,7.69127152,154.64,154.5,20.0]
[1723120221818,0.9257405,154.64,154.52,40.0]
[1723120222120,0.9257405,154.64,154.57,20.0]
[1723120222337,0.9257405,154.64,154.58,0.34]
[1723120222628,0.9257405,154.64,154.58,0.17]
[1723120222808,0.2273325,154.64,154.51,45.0]
[1723120223005,0.2273325,154.64,154.56,20.0]
[1723120223300,0.2273325,154.64,154.62,20.0]
[1723120223531,0.2273325,154.64,154.6,20.0]
[1723120223822,0.2273325,154.64,154.62,20.0]
[1723120224021,0.2273325,154.64,154.61,45.34]
[1723120224022,0.2273325,154.64,154.63,20.34]
[1723120224228,0.2273325,154.64,154.61,0.17]
[1723120224426,0.2273325,154.64,154.63,0.17]
[1723120224615,0.2273325,154.64,154.61,20.0]
[1723120224801,0.2273325,154.64,154.63,20.0]
[1723120225025,1.4731715,154.87,154.71,20.0]
[1723120225207,1.4731715,154.87,154.63,20.34]
[1723120225208,6.4601,154.8,154.67,20.0]
[1723120225522,13.21618892,154.81,154.69,20.0]
[1723120225702,13.21618892,154.81,154.68,45.34]
[1723120225703,6.75668892,154.81,154.7,0.34]
[1723120225906,1.4731715,154.87,154.73,20.0]
[1723120226110,9.84318217,154.87,154.71,0.17]
[1723120226301,44.87,154.83,154.71,0.34]
[1723120226537,8.22827838,154.87,154.73,20.0]
[1723120226832,1.61494297,154.86,154.71,0.17]
[1723120227034,8.22827838,154.87,154.67,20.0]
[1723120227035,44.87,154.79,154.67,20.0]
[1723120227207,32.2899,154.85,154.68,21.19965456]
[1723120227403,44.87,154.84,154.7,20.0]
[1723120227649,6.4595,154.81,154.69,20.0]
[1723120227819,44.87,154.81,154.68,20.0]
[1723120228163,8.22827838,154.87,154.62,9.39724742]
[1723120228164,44.87,154.77,154.62,9.39724742]
[1723120228326,44.87,154.77,154.34,32.84579254]
[1723120228327,6.4628,154.74,154.64,20.0]
[1723120228516,44.87,154.8,154.67,20.0]
[1723120228716,6.461,154.78,154.68,1.19754236]
[1723120229024,62.63604295,154.8,154.62,20.0]
[1723120229340,44.87,154.74,154.61,20.0]
[1723120229509,20.0,154.73,154.61,20.0]
[1723120229702,20.0,154.73,154.58,20.0]
[1723120229906,6.4653,154.67,154.55,20.0]
[1723120230138,1.61660454,154.66,154.53,20.0]
[1723120230326,44.87,154.68,154.56,20.0]
[1723120230632,44.87,154.8,154.61,20.0]
[1723120230815,16.1513,154.79,154.61,20.0]
[1723120231023,6.4654,154.67,154.56,20.0]
[1723120231344,8.22827838,154.87,154.55,20.0]
[1723120231510,6.4637,154.71,154.6,20.0]
[1723120231706,44.87,154.75,154.58,20.0]
[1723120231941,6.4666,154.64,154.54,20.0]
[1723120232125,44.87,154.71,154.55,1.29290553]
[1723120232330,44.87,154.75,154.58,20.0]
[1723120232526,44.87,154.75,154.56,20.0]
[1723120232527,6.4622,154.75,154.62,20.0]
[1723120232721,44.87,154.78,154.6,20.0]
[1723120232929,1.61626616,154.77,154.58,20.0]
[1723120233237,6.4623,154.75,154.59,40.0]
[1723120233425,44.87,154.78,154.59,40.0]
[1723120233426,1.61612925,154.76,154.6,46.4629034]
[1723120233640,6.462,154.75,154.63,20.0]
[1723120233834,44.87,154.77,154.61,0.17]
[1723120234022,1.61614416,154.76,154.61,0.17]
[1723120234222,44.87,154.77,154.62,20.0]
[1723120234525,1.61627641,154.86,154.62,20.0]
[1723120234526,44.87,154.81,154.63,45.34]
[1723120234733,44.87,154.81,154.64,1.29279641]
[1723120234936,44.87,154.81,154.65,1.46271281]
[1723120234937,6.4609,154.78,154.65,1.46271281]
[1723120235129,61.0192,154.81,154.63,20.0]
[1723120235329,44.87,154.73,154.57,0.84572348]
[1723120235538,44.87,154.73,154.58,0.93998369]
[1723120235846,1.61638595,154.72,154.54,21.29341085]
[1723120236053,44.87,154.65,154.5,20.0]
[1723120236231,6.4673,154.63,154.5,20.0]
[1723120236541,6.4673,154.63,154.4,44.87]
[1723120236542,1.61723258,154.62,154.48,20.0]
[1723120236732,45.21,154.61,154.46,20.0]
[1723120236932,46.61776924,154.6,154.46,20.0]
[1723120237141,6.4692,154.58,154.46,20.0]
[1723120237435,91.8277895,154.57,154.41,20.0]
[1723120237646,20.0,154.56,154.42,21.29467688]
[1723120237932,0.17,154.57,154.42,21.29467688]
[1723120238154,0.17,154.56,154.44,20.0]
[1723120238327,0.17,154.58,154.44,21.29371981]
[1723120238519,0.17,154.58,154.45,1.2936287]
[1723120238723,0.17,154.58,154.46,1.29337744]
[1723120238943,0.17,154.58,154.46,1.29256408]
[1723120239249,0.17,154.58,154.39,1.29449321]
[1723120239250,1.78811652,154.58,154.39,1.29449321]
[1723120239426,20.0,154.59,154.45,20.0]
[1723120239630,20.0,154.59,154.46,1.29409853]
[1723120239829,6.4683,154.6,154.47,20.0]
[1723120240033,1.61763806,154.62,154.45,20.0]
[1723120240220,6.4679,154.61,154.48,20.0]
[1723120240420,20.0,154.63,154.49,1.46393997]
[1723120240628,1.61770849,154.62,154.47,20.0]
[1723120240827,1.61770849,154.62,154.43,20.0]
[1723120241027,16.1697,154.61,154.44,1.29446391]
[1723120241253,26.4684,154.6,154.46,20.0]
[1723120241422,6.4684,154.6,154.46,1.29415516]
[1723120241630,44.87,154.64,154.46,21.29415516]
[1723120241831,6.2042,154.75,154.54,20.0]
[1723120242150,6.2042,154.75,154.57,20.0]
[1723120242365,6.2042,154.75,154.61,20.0]
[1723120242537,6.75933453,154.76,154.62,46.63277458]
[1723120242742,6.4607,154.78,154.65,20.0]
[1723120242934,46.48605195,154.8,154.65,20.0]
[1723120242935,44.87,154.8,154.66,0.34]
[1723120243169,1.61567835,154.79,154.59,20.0]
[1723120243443,1.61617869,154.78,154.61,20.0]
[1723120243756,6.4609,154.78,154.64,20.0]
[1723120243955,1.61597037,154.8,154.66,20.0]
[1723120243956,6.46,154.8,154.66,20.0]
[1723120244157,1.61564647,154.82,154.67,0.17]
[1723120244340,6.3143,154.83,154.67,1.29256299]
[1723120244532,6.4593,154.82,154.68,1.63232939]
[1723120244733,1.4731715,154.87,154.68,66.63232939]
[1723120244965,1.61518954,154.86,154.68,66.63232939]
[1723120245129,6.4585,154.84,154.68,86.63232939]
[1723120245345,1.4731715,154.87,154.73,20.0]
[1723120245643,1.4731715,154.87,154.75,20.0]
[1723120245831,1.4731715,154.87,154.76,0.17]
[1723120246028,1.4731715,154.87,154.77,1.29182126]
[1723120246229,1.4731715,154.87,154.78,0.17]
[1723120246462,1.4731715,154.87,154.79,1.29143776]
[1723120246666,1.61470338,154.86,154.7,20.0]
[1723120246957,46.3431715,154.87,154.71,0.17]
[1723120247253,6.4595,154.81,154.68,21.2909019]
[1723120247459,46.3431715,154.87,154.7,20.0]
[1723120247649,1.4731715,154.87,154.76,20.0]
[1723120247960,7.9301715,154.87,154.76,20.0]
[1723120248135,1.4731715,154.87,154.76,20.0]
[1723120248337,1.4731715,154.87,154.78,20.0]
[1723120248646,1.4731715,154.87,154.82,20.0]
[1723120248843,1.4731715,154.87,154.83,0.17]
[1723120249043,1.4731715,154.87,154.85,20.0]
[1723120249247,7777.49223121,155.0,154.88,20.0]
[1723120249447,7777.49223121,155.0,154.9,20.0]
[1723120249647,7777.49223121,155.0,154.91,1.28944809]
[1723120249935,7777.49223121,155.0,154.89,20.0]
[1723120250135,7777.49223121,155.0,154.93,20.0]
[1723120250337,7760.82563121,155.0,154.96,20.0]
[1723120250566,7760.82563121,155.0,154.98,20.0]
[1723120250567,7741.79143121,155.0,154.98,20.0]
[1723120250769,7733.56413121,155.0,154.99,45.34]
[1723120250957,7723.32833121,155.0,154.99,73.6239598]
[1723120251169,7692.96833121,155.0,154.99,73.6239598]
[1723120251459,7692.96833121,155.0,154.99,93.6239598]
[1723120251845,7692.96833121,155.0,154.99,95.09870932]
[1723120251846,7683.75659768,155.0,154.99,95.09870932]
[1723120252037,7683.75659768,155.0,154.99,46.64474952]
[1723120252341,7683.75659768,155.0,154.97,20.0]
[1723120252665,7683.75659768,155.0,154.94,7.18027904]
[1723120252666,7403.15039768,155.0,154.99,72.98161861]
[1723120252856,7080.74890424,155.0,154.99,107.81557181]
[1723120253053,6944.8377919,155.0,154.99,138.64673821]
[1723120253366,6944.8377919,155.0,154.99,64.3014019]
[1723120253367,6592.26778047,155.0,154.99,64.3014019]
[1723120253563,6570.13351402,155.0,154.99,25.1314019]
[1723120253871,6570.13351402,155.0,154.99,41.47474952]
[1723120254161,6570.13351402,155.0,154.99,51.03565749]
[1723120254362,6521.5403333,155.0,154.99,51.03565749]
[1723120254586,6510.45138629,155.0,154.99,51.03565749]
[1723120254741,6457.64030882,155.0,154.99,51.03565749]
[1723120254937,6387.69459442,155.0,154.99,54.27118746]
[1723120255138,6347.47157715,155.0,154.99,51.03565749]
[1723120255444,6049.14157715,155.0,154.99,99.0418814]
[1723120255665,6049.14157715,155.0,154.99,93.7918814]
[1723120255837,6002.36673703,155.0,154.99,99.0418814]
[1723120256045,5889.77593694,155.0,154.99,99.0418814]
[1723120256242,5825.21680349,155.0,154.99,133.90097343]
[1723120256458,5816.10790349,155.0,154.99,140.22432905]
[1723120256767,5723.37871446,155.0,154.99,224.76468775]
[1723120256970,5624.23229884,155.0,154.99,103.84097343]
[1723120257263,5600.87829884,155.0,154.99,128.65097343]
[1723120257444,5595.67899884,155.0,154.99,134.20647759]
[1723120257648,5586.68390508,155.0,154.99,185.90019191]
[1723120257847,5578.5283534,155.0,154.99,185.90019191]
[1723120258046,5578.5283534,155.0,154.99,148.26097343]
[1723120258047,5547.91136704,155.0,154.99,148.26097343]
[1723120258248,5295.51701618,155.0,154.99,160.73468775]
[1723120258467,5279.49731618,155.0,154.99,135.18527672]
[1723120258685,5087.25731618,155.0,154.99,135.18527672]
[1723120258860,4745.49731618,155.0,154.99,141.73327672]
[1723120259045,4342.85731618,155.0,154.99,51.59527672]
[1723120259247,3880.05731618,155.0,154.99,48.00905281]
[1723120259470,3751.53731618,155.0,154.99,48.00905281]
[1723120259669,3696.05731618,155.0,154.99,28.00905281]
[1723120259870,3696.05731618,155.0,154.99,30.6707675]
[1723120259871,3554.85371618,155.0,154.99,30.6707675]
[1723120260064,3476.53371618,155.0,154.99,50.59306245]
[1723120260253,3469.41371618,155.0,154.99,41.47474952]
[1723120260575,3455.17371618,155.0,154.99,20.0]
[1723120260882,3455.17371618,155.0,154.97,20.0]
[1723120261168,3449.80031618,155.0,154.98,20.0]
[1723120261570,3449.80031618,155.0,154.99,20.0]
[1723120261773,3449.80031618,155.0,154.96,20.0]
[1723120262076,3449.80031618,155.0,154.92,20.0]
[1723120262249,3449.80031618,155.0,154.93,20.0]
[1723120262449,3449.80031618,155.0,154.98,20.0]
[1723120262649,3449.80031618,155.0,154.9,44.42]
[1723120262650,3449.80031618,155.0,154.91,20.0]
[1723120262852,6.2103,154.98,154.88,20.0]
[1723120263069,6.2103,154.98,154.85,20.0]
[1723120263070,45.0,154.97,154.85,20.0]
[1723120263370,45.0,154.97,154.87,20.0]
[1723120263772,20.0,154.96,154.82,20.0]
[1723120263975,50.8741,154.94,154.81,20.0]
[1723120264178,15.9783,154.92,154.81,20.0]
[1723120264477,15.9783,154.92,154.79,20.0]
[1723120264478,44.42,154.9,154.79,20.0]
[1723120264773,15.9783,154.92,154.86,20.0]
[1723120264950,3456.25191618,155.0,154.78,20.0]
[1723120264951,6.74948745,154.97,154.95,20.0]
[1723120265149,6.74948745,154.97,154.78,44.42]
[1723120265150,3449.80031618,155.0,154.9,20.0]
[1723120265455,3449.80031618,155.0,154.94,20.0]
[1723120265665,3449.80031618,155.0,154.96,20.0]
[1723120265870,3494.22031618,155.0,154.87,20.0]
[1723120266052,3494.22031618,155.0,154.89,20.0]
[1723120266561,3494.22031618,155.0,154.85,20.0]
[1723120266562,3494.22031618,155.0,154.87,20.0]
[1723120266987,3449.80031618,155.0,154.91,20.0]
[1723120267275,3449.80031618,155.0,154.89,20.0]
[1723120268147,3449.80031618,155.0,154.92,20.0]
[1723120268348,3449.80031618,155.0,154.89,20.0]
[1723120268552,3449.80031618,155.0,154.87,20.0]
[1723120268852,57.0829,154.98,154.86,20.0]
[1723120269067,50.6303,154.98,154.88,20.0]
[1723120269274,6.2103,154.98,154.9,20.0]
[1723120269485,6.2103,154.98,154.84,20.0]
[1723120269486,6.2103,154.98,154.85,20.0]
[1723120269789,45.0,154.97,154.87,20.0]
[1723120269964,45.0,154.97,154.85,20.0]
[1723120270169,45.0,154.97,154.9,20.0]
[1723120270358,6.2103,154.98,154.9,20.0]
[1723120270565,45.0,154.97,154.88,20.0]
[1723120270768,6.2103,154.98,154.93,20.0]
[1723120270959,6.2103,154.98,154.91,20.0]
[1723120271159,6.2103,154.98,154.93,20.0]
[1723120271373,3449.80031618,155.0,154.94,20.0]
[1723120271762,3449.80031618,155.0,154.91,20.0]
[1723120272275,3494.22031618,155.0,154.9,20.0]
[1723120272482,3449.80031618,155.0,154.9,20.0]
[1723120273060,44.42,154.97,154.86,20.0]
[1723120273451,44.42,154.97,154.88,20.0]
[1723120273677,3494.22031618,155.0,154.88,20.0]
[1723120273868,3494.22031618,155.0,154.86,20.0]
[1723120274360,3494.22031618,155.0,154.91,20.0]
[1723120274585,3494.22031618,155.0,154.85,20.0]
[1723120274586,3449.80031618,155.0,154.86,20.0]
[1723120274966,3449.80031618,155.0,154.88,20.0]
[1723120275175,3449.80031618,155.0,154.92,20.0]
[1723120275465,3494.22031618,155.0,154.85,20.0]
[1723120275888,44.42,154.96,154.85,20.0]
[1723120276184,44.42,154.92,154.8,20.0]
[1723120276388,44.42,154.96,154.73,26.74740961]
[1723120276389,44.42,154.88,154.73,26.74740961]
[1723120276563,44.42,154.88,154.71,20.0]
[1723120276564,50.8786,154.84,154.71,20.0]
[1723120276884,51.6755,154.83,154.69,26.75336665]
[1723120277088,51.6755,154.83,154.69,6.75336665]
[1723120277259,51.6755,154.83,154.71,20.0]
[1723120277260,51.5055,154.83,154.71,20.0]
[1723120277460,51.5055,154.83,154.69,6.75336665]
[1723120277684,0.34,154.82,154.67,40.0]
[1723120277863,44.42,154.76,154.62,20.0]
[1723120278062,20.34,154.82,154.56,45.888345]
[1723120278063,22.0152,154.67,154.56,45.888345]
[1723120278282,45.0,154.66,154.56,25.888345]
[1723120278582,22.0152,154.67,154.59,20.0]
[1723120278790,44.42,154.74,154.63,20.0]
[1723120279083,45.0,154.73,154.6,20.0]
[1723120279260,6.36,154.75,154.6,20.0]
[1723120279466,15.0247,154.76,154.68,20.0]
[1723120279689,15.0247,154.76,154.7,20.0]
[1723120279893,15.0247,154.76,154.63,20.0]
[1723120280074,15.0247,154.76,154.69,20.0]
[1723120280262,15.0247,154.76,154.72,20.0]
[1723120280595,6.1036,154.83,154.72,20.0]
[1723120280892,6.1036,154.83,154.57,7.0819]
[1723120280893,6.1036,154.83,154.76,20.0]
[1723120281069,6.6521,154.93,154.8,20.0]
[1723120281255,6.6521,154.93,154.81,20.0]
[1723120281456,6.6521,154.93,154.79,20.0]
[1723120281457,51.0721,154.93,154.79,20.0]
[1723120281661,51.0721,154.93,154.77,20.0]
[1723120281886,44.42,154.89,154.75,20.0]
[1723120282260,44.42,154.89,154.77,20.0]
[1723120282959,6.6521,154.93,154.78,20.0]
[1723120283460,6.6521,154.93,154.85,20.0]
[1723120283660,6.6521,154.93,154.81,20.0]
[1723120283860,6.6521,154.93,154.85,20.0]
[1723120284156,6.6521,154.93,154.79,20.0]
[1723120284157,6.6521,154.93,154.79,40.0]
[1723120284362,6.6521,154.93,154.52,45.92896987]
[1723120284363,44.42,154.87,154.52,45.92896987]
[1723120284573,44.42,154.79,154.66,20.0]
[1723120284795,44.42,154.75,154.6,20.0]
[1723120284995,44.42,154.75,154.61,20.0]
[1723120285301,44.42,154.75,154.59,20.0]
[1723120285477,0.17,154.74,154.59,20.0]
[1723120285685,45.0,154.74,154.59,20.0]
[1723120285880,45.0,154.74,154.62,20.0]
[1723120286088,45.0,154.74,154.66,20.0]
[1723120286279,45.0,154.74,154.65,20.0]
[1723120286594,45.0,154.74,154.65,40.0]
[1723120286892,6.6543,154.78,154.67,20.0]
[1723120287109,6.6543,154.78,154.71,20.0]
[1723120287323,6.8034,154.88,154.77,20.0]
[1723120287609,6.8034,154.88,154.81,20.0]
[1723120287893,0.1467016,154.93,154.83,20.0]
[1723120288098,0.1467016,154.93,154.81,40.0]
[1723120288314,0.1467016,154.93,154.84,20.0]